{"text_format":"1","workbook":"xlsx","n_sheets":11,"sheets":["Mérleg","Bevét.","Normatíva ","Intézményi","Bevételek","Bér, dologi","Segély","Fejlesztés","Átadott pénzeszközök","Társulásnak átad.","kisebbs"],"not_rendered":{"charts":0,"images":0,"macros":0,"external_links":0,"defined_names":0,"comments":1,"pivot_tables":0},"unopened":[],"bounds":{"document_bytes":16777216,"sheet_cells":100000,"rows_first":2000,"rows_last":500,"rows_between":2000,"halvings":0,"cell_chars":16384,"cell_head_chars":4096},"cells_cut":0,"cells_raw":0,"read":"whole","date_system":"1900"}

{"sheet":"Mérleg","index":0,"n_rows":19,"n_cols":8,"rows_kept":19,"cut":false,"hidden":false,"merged":[[2,1,2,5],[4,1,4,2],[4,4,4,5]]}
[null,null,null,null,null,"1. számú melléklet"]
[]
[null,"2012. évi Mérleg (társulás nélkül)"]
[null,null,null,null,null,"eFt"]
[null,"Bevételek",null,null,"Kiadások",null,null,","]
[null,null,2012,null,null,2012]
[]
[null,"Intézm. működési bev.",12925,null,"Személyi juttatások",10150]
[null,"Önk. saj. működési bev.",90793,null,"Munkaadót terh. befizetések",2986]
[null,"Önk.költségv.támogatása",13023,null,"Dologi kiadások",34865]
[null,"Felhalmozási bevételek",360,null,"Segélyek, egyéb pénzbeli jutt.",2446]
[null,"Átvett pénzeszk.(működési)",3750,null,"Átadott pénzeszközök",74867]
[null,"Átvett pénzeszk.(felhalm.)",27737,null,"2011 évi működési hiány",9333]
[null,"Tárgyévi bevételek",{"$f":"SUM(C8:C13)","v":148588},null,"Tárgyévi működési kiadások",{"$f":"SUM(F8:F13)","v":134647}]
[null,null,null,null,"fejlesztési hitel törl. 2012.évi",41454]
[null,"Hiány",36000,null,"fejlesztési hitel törl. 2011.évi",4114]
[null,null,null,null,"Fejlesztés (műv.ház)",3350]
[null,null,null,null,"Általános tartalék",1023]
[null,"Mindösszesen",{"$f":"SUM(C14:C18)","v":184588},{"$f":"D14+D16+D17","v":0},"Mindösszesen",{"$f":"SUM(F14:F18)","v":184588}]

{"sheet":"Bevét.","index":1,"n_rows":48,"n_cols":4,"rows_kept":48,"cut":false,"hidden":false,"merged":[[3,1,3,2],[2,1,2,2],[0,2,0,3],[38,3,39,4]]}
[null,null,"2. számú melléklet"]
[]
[null," Bevételek"]
[null,"2012. évi költségvetés"]
[null,null,"eFt-ban"]
[null,null,2012]
[null,"Intézményi működési bevételek"]
[null,"Felügyeleti jellegű tev.díja",0]
[null,"Alaptev. szolgáltatás",600]
[null,"Egyéb sajátos bevétel",0]
[null,"Tovább számlázott szolg. bevételei",0]
[null,"Bérleti díjak",5254]
[null,"Kötbér, bírság, kártérítés",0]
[null,"Kiszámlázott ÁFA",1135]
[null,"ÁFA visszatérülés",5936,"Műv.Ház"]
[null,"Kamatbevétel",0]
[null,"Intézményi működési bevételek össz.",{"$f":"SUM(C8:C16)","v":12925}]
[]
[null,"Önkorm. sajátos műk. bevételei"]
[null,"Helyi adók"]
[null,"Telek építményadó",2000]
[null,"Építményadó",7500]
[null,"Kommunális adó"]
[null,"Iparűzési adó (állandó)",35000]
[null,"Átengedett központi adók"]
[null,"Pótlék, bírság"]
[null,"SZJA helyben maradó része",18890]
[null,"SZJA jöv. különbség mérséklése",16203]
[null,"Gépjármű súlyadó",11000]
[null,"Egyéb sajátos bevételek"]
[null,"Talajterhelési díj",200]
[null,"Szabálysértési bírság"]
[null,"Önkorm. sajátos működési bev.össz.",{"$f":"SUM(C21:C32)","v":90793}]
[null,"Önkorm.költségvetési tám."]
[null,"Normatív állami támogatás",13023]
[null,"Költségvetési támogatás összesen",{"$f":"SUM(C35)","v":13023}]
[]
[null,"Felhalmozási bevételek"]
[null,"közmű fejl. hozzájárulás",360]
[null,"Felhalmozási bevételek összesen:",{"$f":"SUM(C39)","v":360}]
[null,"Működési célú pénzeszk.átvétel"]
[null,"MEP finanszírozás",3150]
[null,"Mezőőr",600]
[null,"Működési célú pénzeszk átvétel össz.",{"$f":"SUM(C42:C43)","v":3750}]
[null,"Felhalmozási célú pénzeszk.átvétel:"]
[null,"IKSZT Pályázat Műv.Ház eszközbesz.",1260]
[null,"IKSZT Pályázat Műv.Ház",26477]
[null,"Felhalmozási célú pénzeszk.átvétel össz.:",{"$f":"SUM(C46:C47)","v":27737}]

{"sheet":"Normatíva ","index":2,"n_rows":22,"n_cols":2,"rows_kept":22,"cut":false,"hidden":false,"merged":[[2,0,2,1],[1,0,1,1],[3,0,3,1]]}
[]
[]
["Állami támogatás adatai"]
["2012. évi költségvetés"]
[]
[null,"eFt-ban"]
["Megnevezés",2012]
[]
["Népességszám","1780 fő"]
[]
["Települési önkormányzatok üzemeltetési, igazgatási, sport-és kulturális feladatai",7252]
["Lakott külterülettel kapcs. feladatok",21]
["Pénzbeli szociális ell.",5750]
[]
["Normatív támogatás összesen :",{"$f":"SUM(B11:B14)","v":13023}]
[]
[]
["SZJA helyben maradó része",18890]
["SZJA jövedelem különbség alapján",16203]
["Ö s s z e s e n :",{"$f":"SUM(B18:B19)","v":35093}]
[]
["Állami támogatás mindösszesen:",{"$f":"B15+B20","v":48116}]

{"sheet":"Intézményi","index":3,"n_rows":36,"n_cols":6,"rows_kept":36,"cut":false,"hidden":false,"merged":[[29,1,29,2],[27,3,27,4],[21,3,21,4],[35,1,35,2],[35,3,35,4],[32,1,32,2],[31,3,31,4],[32,3,32,4],[29,3,29,4],[31,1,31,2],[10,3,10,4],[12,3,12,4],[12,1,12,2],[2,4,2,5],[7,1,7,5],[8,1,8,2],[8,3,8,4],[4,0,4,5],[5,0,5,5],[27,1,27,2],[15,3,15,4],[18,3,18,4],[18,1,18,2],[21,5,22,5],[24,3,24,4],[22,3,22,4],[15,1,15,2]]}
[]
[]
[]
[]
["Leányvári oktatási intézmények normatív állami támogatásának adatai"]
["2012. évi költségvetés"]
[null,null,null,null,null,"Ft-ban"]
[null,2012]
[null,"Létszám",null,"Normatíva",null,"Összeg"]
["Óvoda","I-VIII.havi","IX-XII.havi","I-VIII.havi","IX-XII.havi"]
["Alaphozzájárulás",77,70,"Tm alapján",null,14256666]
["Nemzetiségi norm.",77,70,null,null,2986666]
["Kedvezményes intézményi étk.",14,null,null,null,952000]
["Társulási normatíva",77,70,null,null,2389333]
["Normatív hozzájárulás összesen:",null,null,null,null,{"$f":"SUM(F11:F14)","v":20584665}]
["Pedagógus továbbképzés",7,null,null,null,44100]
["Normatíva összesen:",null,null,null,null,{"$f":"SUM(F15:F16)","v":20628765}]
[]
["Kistérségi normatíva (óvoda)",null,null,null,null,2089342]
[]
["Iskola "]
["1-4. évfolyam alaphozzájárulás",72,67,"Tm alapján",null,17468331]
["5-8. évfolyam alaphozzájárulás",44,49,"Tm alapján"]
["Sajátos nevelési igényű gy.",2,2,null,null,313600]
["Napközis foglalkozás",30,28,"Tm alapján",null,705000]
["Nemzetiségi normatíva",116,116,null,null,4640000]
["Szakmai fejl. Informatikai feladatok tám.",116,116,null,null,202999]
["Kedvezményes intézményi étk.",14,null,null,null,952000]
["Társulási normatíva",116,116,null,null,3712001]
["Ingyenes tankönyv ",43,null,null,null,516000]
["Normatív hozzájárulás összesen",null,null,null,null,{"$f":"SUM(F22:F30)","v":28509931}]
["Pedagógus továbbképzés",14,null,null,null,88200]
["Osztályfőnöki pótlék",8,null,null,null,207999]
["Normatíva összesen:",null,null,null,null,{"$f":"SUM(F31:F33)","v":28806130}]
[]
["Kistérségi normatíva (iskola)",null,null,null,null,3147579]

{"sheet":"Bevételek","index":4,"n_rows":17,"n_cols":6,"rows_kept":17,"cut":false,"hidden":false,"merged":[[2,1,2,5]]}
[null,null,null,null,null,"4.számú melléklet"]
[]
[null,"2012. évi költségvetés"]
[]
[]
[null,null,null,null,null,"eFt-ban"]
[null,"Intézményi működési bevételek","Igazgatás","Csatorna","Művelődési ház","összesen"]
[null,"Felügyeleti jellegű tevékenység díja",0,0,0,{"$f":"SUM(C8:E8)","v":0}]
[null,"Szolgáltatások ellenértéke",600,0,0,{"$f":"SUM(C9:E9)","v":600}]
[null,"Egyéb sajátos bevételek",null,null,null,0]
[null,"Tovább szlázott szolg. bev.",0,0,0,0]
[null,"Bérleti díjbevételek",930,4204,120,5254]
[null,"Kötbér, bírság",0,0,0,0]
[null,"Kiszámlázott ÁFA",0,1135,0,1135]
[null,"ÁFA visszatérülés",5936,0,0,5936]
[null,"Kamatbevétel",0,0,0,0]
[null,"Intézményi működési bevételek összesen",{"$f":"SUM(C8:C16)","v":7466},{"$f":"SUM(D8:D16)","v":5339},{"$f":"SUM(E8:E16)","v":120},12925]

{"sheet":"Bér, dologi","index":5,"n_rows":22,"n_cols":7,"rows_kept":22,"cut":false,"hidden":false,"merged":[[2,1,2,6]]}
[null,null,null,null,null,null,"5.számú melléklet"]
[]
[null,"2012. évi költségvetés"]
[null,null,null,null,null,null,"eFt-ban"]
[null,"Szakfeladat","Létszám","Személyi juttatás","Járulék","Dologi kiadások","Összesen"]
[null,"   Igazgatás",null,3363,958,19200,{"$f":"D6+E6+F6","v":23521}]
[null,"   Helyi utak",null,null,null,1400,{"$f":"D7+E7+F7","v":1400}]
[null,"   Hulladék kez.",null,null,null,null,0]
[null,"   Ár és belvíz",null,null,null,null,0]
[null,"   Községgazdálkodás",1,960,259,550,1769]
[null,"   Közvilágítás",null,null,null,3429,3429]
[null,"   Védőnői  szolgálat",1,1925,528,600,3053]
[null,"   Közfoglalkoztatás",2,500,135,null,635]
[null,"   Segélyek járulékai",null,null,178,null,178]
[null,"   Szennyvízelvezetés",null,null,null,5339,5339]
[null,"   Rendezvény",null,null,null,635,635]
[null,"   Temető",null,null,null,534,534]
[null,"   Kálvária",null,null,null,null,0]
[null,"Óvoda",null,null,null,null,0]
[null,"Általános Iskola",null,null,null,null,0]
[null,"Műv.Ház és Könyvtár",2,3402,928,3178,7508]
[null,"Mindösszesen:",{"$f":"SUM(C6:C21)","v":6},{"$f":"SUM(D6:D21)","v":10150},{"$f":"SUM(E6:E21)","v":2986},{"$f":"SUM(F6:F21)","v":34865},{"$f":"SUM(G6:G21)","v":48001}]

{"sheet":"Segély","index":6,"n_rows":31,"n_cols":4,"rows_kept":31,"cut":false,"hidden":false,"merged":[[2,1,2,2],[4,1,4,2]]}
[null,null,"6. számú melléklet"]
[]
[null,"Szociális ellátások"]
[]
[null,"2012. évi költségvetés"]
[]
[null,null,"eFt-ban"]
[null,"Jogcím",2012]
[null,"Rászorultságtól függő pénzbeli,szociális, gyerekvédelmi ellátások"]
[null,"Rendszeres szoc.segély",156]
[null,"FHT",590]
[null,"Időskorúak járadéka",36]
[null,"Lakásfenntart. tám. (normatív)",250]
[null,"Lakásfenntart. tám. (helyi)"]
[null,"Ápolási díj (normatív)",264]
[null,"Ápolási díj (helyi)"]
[null,"Átmeneti segély ",150]
[null,"Temetési segély",100]
[null,"Rendkív.gyermekvédelmi tám."]
[null,"Lakáshoz jutási támogatás",200]
[null,"        kórházi ápolás"]
[null,"        eseti gyógyszer tám."]
[null,"        harmadik gyermek szül."]
[null,"                  összesen",{"$f":"SUM(C10:C20)","v":1746}]
[null,"Természetben nyújtott szociális ellátások"]
[null,"Természetbeni átm. segély tüzelő, int. tér. ",700,"fetáz "]
[null,"Köztemetés"]
[null,"Közgyógyellátás"]
[null,"                összesen:",{"$f":"SUM(C26:C28)","v":700}]
[]
[null,"Folyósított ellátás összesen",{"$f":"C24+C29","v":2446}]

{"sheet":"Fejlesztés","index":7,"n_rows":20,"n_cols":4,"rows_kept":20,"cut":false,"hidden":false,"merged":[[3,0,3,4]]}
[]
[null,null,null,"7. számú melléklet"]
[]
["Felhalmozási kiadások 2012."]
[]
[]
[]
[]
[]
[null,null,"eFt-ban"]
[null,"Beruházási kiadások",2012]
[null,"Művelődési Ház eszközbeszerzés",1600]
[null,"összesen:",{"$f":"SUM(C12:C12)","v":1600}]
[]
[null,"Felújítási kiadások"]
[]
[null,"Művelődési Ház felújítása",1750]
[null,"összesen:",{"$f":"SUM(C16:C17)","v":1750}]
[]
[null,"Felhalmozási kiadások összesen:",{"$f":"C13+C18","v":3350}]

{"sheet":"Átadott pénzeszközök","index":8,"n_rows":21,"n_cols":3,"rows_kept":21,"cut":false,"hidden":false,"merged":[[2,1,2,2],[3,1,3,2]]}
[null,null,"8. számú melléklet"]
[]
[null,"Átadott pénzeszközök"]
[null,"Közoktatási társulás nélkül"]
[null,null,"eFt-ban"]
[null,null,2012]
[null,"Átadott pénzeszközök"]
[null,"Települési Önkorm. Orsz. Szöv. tagdíj (TÖOSZ)",40]
[null,"Pilis Gerecse",295]
[null,"Ister Gránum ",18]
[null,"Duna Vértes ",50]
[null,"kistérségi tagdíj",230]
[null,"civil szervezeteknek átadott pénzeszköz",700]
[null,"Kistérségi társulásnak (Házi szoc. ellátás)",932]
[null,"Kistérségi társulásnak (Gy. jólét. alap.)",881]
[null,"Körjegyzőségnek",19172]
[null,"Közoktatási társulásnak ",{"$f":"C18+C19","v":52439}]
[null,"- ebből: önkormányzati hozzájárulás (iskola)",34833]
[null,"             önkormányzati hozzájárulás (óvoda)",17606]
[null,"Vállalkozásnak (isk. eü.)",110]
[null,"Műk. célú pénzeszk. átadás össz.",{"$f":"C14+C15+C16+C17+C20+C8+C9+C10+C11+C13+C12","v":74867}]

{"sheet":"Társulásnak átad.","index":9,"n_rows":26,"n_cols":6,"rows_kept":26,"cut":false,"hidden":false,"merged":[[4,0,4,2],[4,3,4,5]]}
[null,null,null,null,null,"9. számú melléklet"]
[]
[]
["Iskola, Óvoda",null,null,null,null,"eFt"]
["Bevételek",null,null,"Kiadások"]
[null,2011,2012,null,2011,2012]
["Normatíva (3/a.sz.melléklet)",{"$f":"B8+B9","v":50682},{"$f":"C8+C9","v":49435},"Személyi juttatások",{"$f":"E8+E9","v":67577},{"$f":"F8+F9","v":68706}]
["ebből: iskola",31382,28806,"ebből: iskola",43815,43176]
["          óvoda",19300,20629,"          óvoda",23762,25530]
["Kistérségi normatíva (3/a.)",{"$f":"B11+B12","v":5179},{"$f":"C11+C12","v":5236},"Munkaadót terh. befizetések",{"$f":"E11+E12","v":17817},{"$f":"F11+F12","v":18121}]
["ebből: iskola",3342,3147,"ebből: iskola",11470,11288]
["          óvoda",1837,2089,"          óvoda",6347,6833]
["Intézmény saját bevétele",{"$f":"B14+B15","v":3000},{"$f":"C14+C15","v":4138},"Dologi kiadások",{"$f":"E14+E15","v":20237},{"$f":"F14+F15","v":22163}]
["ebből: iskola",1000,1338,"ebből: iskola",11996,12303]
["          óvoda",2000,2800,"          óvoda",8241,9860]
["Intézm. egyéb saját bevétele",{"$f":"B17+B18","v":4027},null,"Közös költségek",{"$f":"E17+E18","v":2951},{"$f":"F17+F18","v":2258}]
["ebből: iskola",null,null,"ebből: iskola",1904,1357]
["          óvoda",4027,null,"          óvoda",1047,901]
["Bevételek összesen:",{"$f":"B7+B10+B13+B16","v":62888},{"$f":"C7+C10+C13","v":58809},"Kiadások összesen:",{"$f":"E7+E10+E13+E16","v":108582},{"$f":"F7+F10+F13+F16","v":111248}]
[null,2011,2012]
[" Normatíva elszámolás"]
["ebből: iskola",2000]
["          óvoda",432]
["önkormányzati hozzájárulás",{"$f":"B25+B26","v":43262},{"$f":"C25+C26","v":52439}]
["ebből: iskola",{"$f":"E8+E11+E14+E17-B8-B11-B14-B22","v":31461},{"$f":"F8+F11+F14+F17-C8-C11-C14-C22","v":34833}]
["ebből: óvoda",{"$f":"E9+E12+E15+E18-B9-B12-B15-B18-B23","v":11801},{"$f":"F9+F12+F15+F18-C9-C12-C15-C23","v":17606}]

{"sheet":"kisebbs","index":10,"n_rows":38,"n_cols":3,"rows_kept":38,"cut":false,"hidden":false,"merged":[[37,0,37,3],[1,0,1,4],[2,0,2,4]]}
[]
[" Kisebbségi Önkormányzat"]
["2012. évi költségvetése"]
[]
[]
[]
[null,null,2012]
[]
[null,"Bevételek"]
[null,"Normatív támogatás",214]
[null,"Előző évi pénzmaradvány",1081]
[null,"Saját bevétel"]
[null,"Összesen",{"$f":"SUM(C10:C12)","v":1295}]
[null,"Kiadások"]
[null,"Irodaszer"]
[null,"Folyóirat"]
[null,"Egyéb készlet besz.",50]
[null,"Vásárolt élelmezés"]
[null,"Szállítás",119]
[null,"Gázdíj"]
[null,"Villamosenergia"]
[null,"Vízdíj"]
[null,"Karbantartás"]
[null,"Egyéb üzemeltetési kiadás"]
[null,"Kiküldetés"]
[null,"ÁFA",45]
[null,"Reprezentáció"]
[null,"Adók, díjak"]
[null,"Összesen",{"$f":"SUM(C15:C28)","v":214}]
[]
[null,"Személyi juttatás"]
[null,"Járulék"]
[null,"Átadott pénzeszköz"]
[null,"Céltartalék (Tájház)"]
[null,"Általános tartalék",1081]
[null,"Kiadások összesen:",{"$f":"SUM(C29:C35)","v":1295}]
[]
["A ……………. számú Német Képviselő-testületi határozattal a Német Nemzetiségi Önkormányzat 2012. évi költségvetése elfogadásra került."]